Workbook

Sheet 推荐学生名单
A1: 序号 | B1: 学号 | C1: 姓名 | D1: 性别 | E1: 政治面貌 | F1: 学院名称 | G1: 专业名称（全称） | H1: 专业代码 | I1: 是否受过纪律处分 | J1: 所有课程考核成绩是否合格 | K1: 前三年必修课程成绩总优良率 | L1: 前三年专业年级综合测评排名（每学年都需填写） | M1: 前三年必修课加权平均成绩 （满分70分） | N1: 前三年综合测评成绩 （满分10分） | O1: 综合评价和学术专长成绩 （满分20分） | P1: 综合成绩 | Q1: 综合成绩专业排名 | R1: 专业总人数 | S1: 申请推荐类别 | T1: 是否推荐（是或候补） | U1: 按推免要求学生应该具备的条件或计入综合成绩的各类活动、经历、以及科研成果、竞赛获奖等学术专长2 | V1: 备注
A2: 1 | B2: 2020010194 | C2: 于光远 | D2: 男 | E2: 共青团员 | F2: 地球科学学院 | G2: 地质学 | H2: 070901 | I2: 否 | J2: 是 | K2: =VLOOKUP(C2,[1]Sheet1!$C$2:$Z$166,18,0) -> 97.78% | L2: 13/193 3/38 12/37 | M2: =VLOOKUP(C2,[1]Sheet1!$C$2:$Z$166,4,0) -> 64.39 | N2: =VLOOKUP(C2,[1]Sheet1!$C$2:$Z$166,9,0) -> 9.39 | O2: =VLOOKUP(C2,[1]Sheet1!$C$2:$Z$166,15,0) -> 2.00 | P2: =VLOOKUP(C2,[1]Sheet1!$C$2:$Z$166,16,0) -> 75.78 | Q2: =VLOOKUP(C2,[1]Sheet1!$C$2:$Z$166,2,0) -> 1 | R2: 37 | S2: 普通推免 | T2: 是
A3: 2 | B3: 2020010041 | C3: 陈毅 | D3: 男 | E3: 共青团员 | F3: 地球科学学院 | G3: 地质学 | H3: 070901 | I3: 否 | J3: 是 | K3: =VLOOKUP(C3,[1]Sheet1!$C$2:$Z$166,18,0) -> 95.65% | L3: 15/193 1/38 13/37 | M3: =VLOOKUP(C3,[1]Sheet1!$C$2:$Z$166,4,0) -> 62.52 | N3: =VLOOKUP(C3,[1]Sheet1!$C$2:$Z$166,9,0) -> 9.72 | O3: =VLOOKUP(C3,[1]Sheet1!$C$2:$Z$166,15,0) -> 2.93 | P3: =VLOOKUP(C3,[1]Sheet1!$C$2:$Z$166,16,0) -> 75.18 | Q3: =VLOOKUP(C3,[1]Sheet1!$C$2:$Z$166,2,0) -> 2 | R3: 37 | S3: 国家专项博士 | T3: 是
A4: 3 | B4: 2020010038 | C4: 吴明金 | D4: 男 | E4: 共青团员 | F4: 地球科学学院 | G4: 地质学 | H4: 070901 | I4: 否 | J4: 是 | K4: =VLOOKUP(C4,[1]Sheet1!$C$2:$Z$166,18,0) -> 95.56% | L4: 18/193 2/38 7/37 | M4: =VLOOKUP(C4,[1]Sheet1!$C$2:$Z$166,4,0) -> 63.21 | N4: =VLOOKUP(C4,[1]Sheet1!$C$2:$Z$166,9,0) -> 9.52 | O4: =VLOOKUP(C4,[1]Sheet1!$C$2:$Z$166,15,0) -> 2.40 | P4: =VLOOKUP(C4,[1]Sheet1!$C$2:$Z$166,16,0) -> 75.12 | Q4: =VLOOKUP(C4,[1]Sheet1!$C$2:$Z$166,2,0) -> 3 | R4: 37 | S4: 普通推免 | T4: 是
A5: 4 | B5: 2020010042 | C5: 李德伟 | D5: 男 | E5: 共青团员 | F5: 地球科学学院 | G5: 地质学 | H5: 070901 | I5: 否 | J5: 是 | K5: =VLOOKUP(C5,[1]Sheet1!$C$2:$Z$166,18,0) -> 95.65% | L5: 30/193 4/38 9/37 | M5: =VLOOKUP(C5,[1]Sheet1!$C$2:$Z$166,4,0) -> 61.44 | N5: =VLOOKUP(C5,[1]Sheet1!$C$2:$Z$166,9,0) -> 9.38 | O5: =VLOOKUP(C5,[1]Sheet1!$C$2:$Z$166,15,0) -> 2.48 | P5: =VLOOKUP(C5,[1]Sheet1!$C$2:$Z$166,16,0) -> 73.30 | Q5: =VLOOKUP(C5,[1]Sheet1!$C$2:$Z$166,2,0) -> 4 | R5: 37 | S5: 国家专项硕士 | T5: 是
A6: 5 | B6: 2019010072 | C6: 李莹 | D6: 女 | E6: 共青团员 | F6: 地球科学学院 | G6: 地质学 | H6: 070901 | I6: 否 | J6: 是 | K6: =VLOOKUP(C6,[1]Sheet1!$C$2:$Z$166,18,0) -> 92.68% | L6: 19/193 7/38 10/37 | M6: =VLOOKUP(C6,[1]Sheet1!$C$2:$Z$166,4,0) -> 61.89 | N6: =VLOOKUP(C6,[1]Sheet1!$C$2:$Z$166,9,0) -> 9.28 | O6: =VLOOKUP(C6,[1]Sheet1!$C$2:$Z$166,15,0) -> 2.00 | P6: =VLOOKUP(C6,[1]Sheet1!$C$2:$Z$166,16,0) -> 73.17 | Q6: =VLOOKUP(C6,[1]Sheet1!$C$2:$Z$166,2,0) -> 5 | R6: 37 | S6: 普通推免 | T6: 是
A7: 6 | B7: 2020010063 | C7: 苏洋 | D7: 女 | E7: 共青团员 | F7: 地球科学学院 | G7: 地质学 | H7: 070901 | I7: 否 | J7: 是 | K7: =VLOOKUP(C7,[1]Sheet1!$C$2:$Z$166,18,0) -> 86.96% | L7: 33/193 5/38 1/37 | M7: =VLOOKUP(C7,[1]Sheet1!$C$2:$Z$166,4,0) -> 61.55 | N7: =VLOOKUP(C7,[1]Sheet1!$C$2:$Z$166,9,0) -> 9.47 | O7: =VLOOKUP(C7,[1]Sheet1!$C$2:$Z$166,15,0) -> 2.00 | P7: =VLOOKUP(C7,[1]Sheet1!$C$2:$Z$166,16,0) -> 73.02 | Q7: =VLOOKUP(C7,[1]Sheet1!$C$2:$Z$166,2,0) -> 6 | R7: 37 | S7: 本博一体化 | T7: 是 | U7: 四级509/六级482 满足本博英语条件
A8: 7 | B8: 2020010051 | C8: 黄铖铮 | D8: 男 | E8: 共青团员 | F8: 地球科学学院 | G8: 地质学 | H8: 070901 | I8: 否 | J8: 是 | K8: =VLOOKUP(C8,[1]Sheet1!$C$2:$Z$166,18,0) -> 78.26% | L8: 31/193 14/38 8/37 | M8: =VLOOKUP(C8,[1]Sheet1!$C$2:$Z$166,4,0) -> 60.50 | N8: =VLOOKUP(C8,[1]Sheet1!$C$2:$Z$166,9,0) -> 9.15 | O8: =VLOOKUP(C8,[1]Sheet1!$C$2:$Z$166,15,0) -> 2.00 | P8: =VLOOKUP(C8,[1]Sheet1!$C$2:$Z$166,16,0) -> 71.66 | Q8: =VLOOKUP(C8,[1]Sheet1!$C$2:$Z$166,2,0) -> 7 | R8: 37 | S8: 普通推免 | T8: 是
A9: 8 | B9: 2020010078 | C9: 杨薰 | D9: 男 | E9: 共青团员 | F9: 地球科学学院 | G9: 地质学 | H9: 070901 | I9: 否 | J9: 是 | K9: =VLOOKUP(C9,[1]Sheet1!$C$2:$Z$166,18,0) -> 93.48% | L9: 35/193 8/38 14/37 | M9: =VLOOKUP(C9,[1]Sheet1!$C$2:$Z$166,4,0) -> 60.32 | N9: =VLOOKUP(C9,[1]Sheet1!$C$2:$Z$166,9,0) -> 9.00 | O9: =VLOOKUP(C9,[1]Sheet1!$C$2:$Z$166,15,0) -> 2.00 | P9: =VLOOKUP(C9,[1]Sheet1!$C$2:$Z$166,16,0) -> 71.32 | Q9: =VLOOKUP(C9,[1]Sheet1!$C$2:$Z$166,2,0) -> 8 | R9: 37 | S9: 国家专项硕士 | T9: 是
A10: 9 | B10: 2020010026 | C10: 王雨轩 | D10: 男 | E10: 共青团员 | F10: 地球科学学院 | G10: 地质学 | H10: 070901 | I10: 否 | J10: 是 | K10: =VLOOKUP(C10,[1]Sheet1!$C$2:$Z$166,18,0) -> 88.64% | L10: 21/193 16/38 15/37 | M10: =VLOOKUP(C10,[1]Sheet1!$C$2:$Z$166,4,0) -> 61.33 | N10: =VLOOKUP(C10,[1]Sheet1!$C$2:$Z$166,9,0) -> 8.97 | O10: =VLOOKUP(C10,[1]Sheet1!$C$2:$Z$166,15,0) -> 1.00 | P10: =VLOOKUP(C10,[1]Sheet1!$C$2:$Z$166,16,0) -> 71.30 | Q10: =VLOOKUP(C10,[1]Sheet1!$C$2:$Z$166,2,0) -> 9 | R10: 37 | S10: 普通推免 | T10: 是
A11: 10 | B11: 2020010057 | C11: 党文乐 | D11: 女 | E11: 共青团员 | F11: 地球科学学院 | G11: 地质学 | H11: 070901 | I11: 否 | J11: 是 | K11: =VLOOKUP(C11,[1]Sheet1!$C$2:$Z$166,18,0) -> 82.61% | L11: 58/193 11/38 6/37 | M11: =VLOOKUP(C11,[1]Sheet1!$C$2:$Z$166,4,0) -> 60.17 | N11: =VLOOKUP(C11,[1]Sheet1!$C$2:$Z$166,9,0) -> 9.12 | O11: =VLOOKUP(C11,[1]Sheet1!$C$2:$Z$166,15,0) -> 2.00 | P11: =VLOOKUP(C11,[1]Sheet1!$C$2:$Z$166,16,0) -> 71.28 | Q11: =VLOOKUP(C11,[1]Sheet1!$C$2:$Z$166,2,0) -> 10 | R11: 37 | S11: 国家专项硕士 | T11: 是
A12: 11 | B12: 2020010167 | C12: 宋欣恺 | D12: 男 | E12: 共青团员 | F12: 地球科学学院 | G12: 地质学 | H12: 070901 | I12: 否 | J12: 是 | K12: =VLOOKUP(C12,[1]Sheet1!$C$2:$Z$166,18,0) -> 84.78% | L12: 42/193 17/38 18/37 | M12: =VLOOKUP(C12,[1]Sheet1!$C$2:$Z$166,4,0) -> 60.76 | N12: =VLOOKUP(C12,[1]Sheet1!$C$2:$Z$166,9,0) -> 8.73 | O12: =VLOOKUP(C12,[1]Sheet1!$C$2:$Z$166,15,0) -> 1.00 | P12: =VLOOKUP(C12,[1]Sheet1!$C$2:$Z$166,16,0) -> 70.49 | Q12: =VLOOKUP(C12,[1]Sheet1!$C$2:$Z$166,2,0) -> 11 | R12: 37 | S12: 国家专项硕士 | T12: 是
A13: 12 | B13: 2020010027 | C13: 王中瑞 | D13: 男 | E13: 中共党员 | F13: 地球科学学院 | G13: 地质学 | H13: 070901 | I13: 否 | J13: 是 | K13: =VLOOKUP(C13,[1]Sheet1!$C$2:$Z$166,18,0) -> 76.09% | L13: 49/193 6/38 2/37 | M13: =VLOOKUP(C13,[1]Sheet1!$C$2:$Z$166,4,0) -> 58.77 | N13: =VLOOKUP(C13,[1]Sheet1!$C$2:$Z$166,9,0) -> 9.28 | O13: =VLOOKUP(C13,[1]Sheet1!$C$2:$Z$166,15,0) -> 2.00 | P13: =VLOOKUP(C13,[1]Sheet1!$C$2:$Z$166,16,0) -> 70.04 | Q13: =VLOOKUP(C13,[1]Sheet1!$C$2:$Z$166,2,0) -> 12 | R13: 37 | S13: 普通推免 | T13: 是
A14: 13 | B14: 2020010064 | C14: 李维芬 | D14: 女 | E14: 共青团员 | F14: 地球科学学院 | G14: 地质学 | H14: 070901 | I14: 否 | J14: 是 | K14: =VLOOKUP(C14,[1]Sheet1!$C$2:$Z$166,18,0) -> 76.09% | L14: 69/193 13/38 11/37 | M14: =VLOOKUP(C14,[1]Sheet1!$C$2:$Z$166,4,0) -> 58.98 | N14: =VLOOKUP(C14,[1]Sheet1!$C$2:$Z$166,9,0) -> 8.97 | O14: =VLOOKUP(C14,[1]Sheet1!$C$2:$Z$166,15,0) -> 2.00 | P14: =VLOOKUP(C14,[1]Sheet1!$C$2:$Z$166,16,0) -> 69.95 | Q14: =VLOOKUP(C14,[1]Sheet1!$C$2:$Z$166,2,0) -> 13 | R14: 37 | S14: 普通推免 | T14: 是
A15: 14 | B15: 2020010008 | C15: 冈子杨 | D15: 女 | E15: 共青团员 | F15: 地球科学学院 | G15: 地质学 | H15: 070901 | I15: 否 | J15: 是 | K15: =VLOOKUP(C15,[1]Sheet1!$C$2:$Z$166,18,0) -> 73.91% | L15: 83/193 9/38 5/37 | M15: =VLOOKUP(C15,[1]Sheet1!$C$2:$Z$166,4,0) -> 58.83 | N15: =VLOOKUP(C15,[1]Sheet1!$C$2:$Z$166,9,0) -> 9.10 | O15: =VLOOKUP(C15,[1]Sheet1!$C$2:$Z$166,15,0) -> 2.00 | P15: =VLOOKUP(C15,[1]Sheet1!$C$2:$Z$166,16,0) -> 69.94 | Q15: =VLOOKUP(C15,[1]Sheet1!$C$2:$Z$166,2,0) -> 14 | R15: 37 | S15: 普通推免 | T15: 是
A16: 15 | B16: 2020010036 | C16: 李佳蓉 | D16: 女 | E16: 中共党员 | F16: 地球科学学院 | G16: 地质学 | H16: 070901 | I16: 否 | J16: 是 | K16: =VLOOKUP(C16,[1]Sheet1!$C$2:$Z$166,18,0) -> 76.09% | L16: 57/193 10/38 4/37 | M16: =VLOOKUP(C16,[1]Sheet1!$C$2:$Z$166,4,0) -> 57.66 | N16: =VLOOKUP(C16,[1]Sheet1!$C$2:$Z$166,9,0) -> 9.16 | O16: =VLOOKUP(C16,[1]Sheet1!$C$2:$Z$166,15,0) -> 2.00 | P16: =VLOOKUP(C16,[1]Sheet1!$C$2:$Z$166,16,0) -> 68.82 | Q16: =VLOOKUP(C16,[1]Sheet1!$C$2:$Z$166,2,0) -> 15 | R16: 37 | S16: 本博一体化 | T16: 是 | U16: 四级465 满足本博英语条件
A17: 16 | B17: 2020010079 | C17: 娄松杨 | D17: 男 | E17: 共青团员 | F17: 地球科学学院 | G17: 资源勘查工程 | H17: 081403 | I17: 否 | J17: 是 | K17: =VLOOKUP(C17,[1]Sheet1!$C$2:$Z$166,18,0) -> 95.92% | L17: 5/193 4/130 1/128 | M17: =VLOOKUP(C17,[1]Sheet1!$C$2:$Z$166,4,0) -> 64.54 | N17: =VLOOKUP(C17,[1]Sheet1!$C$2:$Z$166,9,0) -> 9.82 | O17: =VLOOKUP(C17,[1]Sheet1!$C$2:$Z$166,15,0) -> 3.65 | P17: =VLOOKUP(C17,[1]Sheet1!$C$2:$Z$166,16,0) -> 78.01 | Q17: =VLOOKUP(C17,[1]Sheet1!$C$2:$Z$166,2,0) -> 1 | R17: 128 | S17: 普通推免 | T17: 是
A18: 17 | B18: 2020010169 | C18: 李玲 | D18: 女 | E18: 中共党员 | F18: 地球科学学院 | G18: 资源勘查工程 | H18: 081403 | I18: 否 | J18: 是 | K18: =VLOOKUP(C18,[1]Sheet1!$C$2:$Z$166,18,0) -> 89.80% | L18: 10/193 3/130 4/128 | M18: =VLOOKUP(C18,[1]Sheet1!$C$2:$Z$166,4,0) -> 62.82 | N18: =VLOOKUP(C18,[1]Sheet1!$C$2:$Z$166,9,0) -> 9.69 | O18: =VLOOKUP(C18,[1]Sheet1!$C$2:$Z$166,15,0) -> 4.40 | P18: =VLOOKUP(C18,[1]Sheet1!$C$2:$Z$166,16,0) -> 76.91 | Q18: =VLOOKUP(C18,[1]Sheet1!$C$2:$Z$166,2,0) -> 2 | R18: 128 | S18: 普通推免 | T18: 是
A19: 18 | B19: 2020010092 | C19: 夏冉然 | D19: 女 | E19: 共青团员 | F19: 地球科学学院 | G19: 资源勘查工程 | H19: 081403 | I19: 否 | J19: 是 | K19: =VLOOKUP(C19,[1]Sheet1!$C$2:$Z$166,18,0) -> 97.96% | L19: 3/193 5/130 17/128 | M19: =VLOOKUP(C19,[1]Sheet1!$C$2:$Z$166,4,0) -> 64.28 | N19: =VLOOKUP(C19,[1]Sheet1!$C$2:$Z$166,9,0) -> 9.65 | O19: =VLOOKUP(C19,[1]Sheet1!$C$2:$Z$166,15,0) -> 2.00 | P19: =VLOOKUP(C19,[1]Sheet1!$C$2:$Z$166,16,0) -> 75.93 | Q19: =VLOOKUP(C19,[1]Sheet1!$C$2:$Z$166,2,0) -> 3 | R19: 128 | S19: 普通推免 | T19: 是
A20: 19 | B20: 2020010012 | C20: 金世贵 | D20: 男 | E20: 中共党员 | F20: 地球科学学院 | G20: 资源勘查工程 | H20: 081403 | I20: 否 | J20: 是 | K20: =VLOOKUP(C20,[1]Sheet1!$C$2:$Z$166,18,0) -> 93.88% | L20: 2/193 1/130 9/128 | M20: =VLOOKUP(C20,[1]Sheet1!$C$2:$Z$166,4,0) -> 63.65 | N20: =VLOOKUP(C20,[1]Sheet1!$C$2:$Z$166,9,0) -> 9.89 | O20: =VLOOKUP(C20,[1]Sheet1!$C$2:$Z$166,15,0) -> 2.00 | P20: =VLOOKUP(C20,[1]Sheet1!$C$2:$Z$166,16,0) -> 75.54 | Q20: =VLOOKUP(C20,[1]Sheet1!$C$2:$Z$166,2,0) -> 4 | R20: 128 | S20: 本博一体化 | T20: 是 | U20: 四级522/六级446 满足本博英语条件
A21: 20 | B21: 2020010110 | C21: 史国梁 | D21: 男 | E21: 共青团员 | F21: 地球科学学院 | G21: 资源勘查工程 | H21: 081403 | I21: 否 | J21: 是 | K21: =VLOOKUP(C21,[1]Sheet1!$C$2:$Z$166,18,0) -> 95.74% | L21: 7/193 14/130 29/128 | M21: =VLOOKUP(C21,[1]Sheet1!$C$2:$Z$166,4,0) -> 64.05 | N21: =VLOOKUP(C21,[1]Sheet1!$C$2:$Z$166,9,0) -> 9.30 | O21: =VLOOKUP(C21,[1]Sheet1!$C$2:$Z$166,15,0) -> 2.00 | P21: =VLOOKUP(C21,[1]Sheet1!$C$2:$Z$166,16,0) -> 75.35 | Q21: =VLOOKUP(C21,[1]Sheet1!$C$2:$Z$166,2,0) -> 5 | R21: 128 | S21: 普通推免 | T21: 是
A22: 21 | B22: 2020010072 | C22: 史泽辉 | D22: 男 | E22: 中共党员 | F22: 地球科学学院 | G22: 资源勘查工程 | H22: 081403 | I22: 否 | J22: 是 | K22: =VLOOKUP(C22,[1]Sheet1!$C$2:$Z$166,18,0) -> 95.92% | L22: 17/193 2/130 7/128 | M22: =VLOOKUP(C22,[1]Sheet1!$C$2:$Z$166,4,0) -> 63.58 | N22: =VLOOKUP(C22,[1]Sheet1!$C$2:$Z$166,9,0) -> 9.61 | O22: =VLOOKUP(C22,[1]Sheet1!$C$2:$Z$166,15,0) -> 2.00 | P22: =VLOOKUP(C22,[1]Sheet1!$C$2:$Z$166,16,0) -> 75.19 | Q22: =VLOOKUP(C22,[1]Sheet1!$C$2:$Z$166,2,0) -> 6 | R22: 128 | S22: 普通推免 | T22: 是
A23: 22 | B23: 2020010120 | C23: 郭慧 | D23: 女 | E23: 共青团员 | F23: 地球科学学院 | G23: 资源勘查工程 | H23: 081403 | I23: 否 | J23: 是 | K23: =VLOOKUP(C23,[1]Sheet1!$C$2:$Z$166,18,0) -> 93.75% | L23: 11/193 17/130 18/128 | M23: =VLOOKUP(C23,[1]Sheet1!$C$2:$Z$166,4,0) -> 63.76 | N23: =VLOOKUP(C23,[1]Sheet1!$C$2:$Z$166,9,0) -> 9.34 | O23: =VLOOKUP(C23,[1]Sheet1!$C$2:$Z$166,15,0) -> 2.00 | P23: =VLOOKUP(C23,[1]Sheet1!$C$2:$Z$166,16,0) -> 75.10 | Q23: =VLOOKUP(C23,[1]Sheet1!$C$2:$Z$166,2,0) -> 7 | R23: 128 | S23: 普通推免 | T23: 是
A24: 23 | B24: 2020010075 | C24: 欧长健 | D24: 男 | E24: 共青团员 | F24: 地球科学学院 | G24: 资源勘查工程 | H24: 081403 | I24: 否 | J24: 是 | K24: =VLOOKUP(C24,[1]Sheet1!$C$2:$Z$166,18,0) -> 97.96% | L24: 6/193 10/130 6/128 | M24: =VLOOKUP(C24,[1]Sheet1!$C$2:$Z$166,4,0) -> 63.25 | N24: =VLOOKUP(C24,[1]Sheet1!$C$2:$Z$166,9,0) -> 9.59 | O24: =VLOOKUP(C24,[1]Sheet1!$C$2:$Z$166,15,0) -> 2.00 | P24: =VLOOKUP(C24,[1]Sheet1!$C$2:$Z$166,16,0) -> 74.84 | Q24: =VLOOKUP(C24,[1]Sheet1!$C$2:$Z$166,2,0) -> 8 | R24: 128 | S24: 普通推免 | T24: 是
A25: 24 | B25: 2020010114 | C25: 潘劲捷 | D25: 女 | E25: 中共党员 | F25: 地球科学学院 | G25: 资源勘查工程 | H25: 081403 | I25: 否 | J25: 是 | K25: =VLOOKUP(C25,[1]Sheet1!$C$2:$Z$166,18,0) -> 83.67% | L25: 1/193 15/130 5/128 | M25: =VLOOKUP(C25,[1]Sheet1!$C$2:$Z$166,4,0) -> 60.32 | N25: =VLOOKUP(C25,[1]Sheet1!$C$2:$Z$166,9,0) -> 9.63 | O25: =VLOOKUP(C25,[1]Sheet1!$C$2:$Z$166,15,0) -> 4.40 | P25: =VLOOKUP(C25,[1]Sheet1!$C$2:$Z$166,16,0) -> 74.35 | Q25: =VLOOKUP(C25,[1]Sheet1!$C$2:$Z$166,2,0) -> 9 | R25: 128 | S25: 普通推免 | T25: 是
A26: 25 | B26: 2020010033 | C26: 刘师晴 | D26: 女 | E26: 中共党员 | F26: 地球科学学院 | G26: 资源勘查工程 | H26: 081403 | I26: 否 | J26: 是 | K26: =VLOOKUP(C26,[1]Sheet1!$C$2:$Z$166,18,0) -> 95.92% | L26: 22/193 6/130 11/128 | M26: =VLOOKUP(C26,[1]Sheet1!$C$2:$Z$166,4,0) -> 62.68 | N26: =VLOOKUP(C26,[1]Sheet1!$C$2:$Z$166,9,0) -> 9.52 | O26: =VLOOKUP(C26,[1]Sheet1!$C$2:$Z$166,15,0) -> 2.13 | P26: =VLOOKUP(C26,[1]Sheet1!$C$2:$Z$166,16,0) -> 74.34 | Q26: =VLOOKUP(C26,[1]Sheet1!$C$2:$Z$166,2,0) -> 10 | R26: 128 | S26: 普通推免 | T26: 是
A27: 26 | B27: 2020010089 | C27: 雷雯婧 | D27: 女 | E27: 共青团员 | F27: 地球科学学院 | G27: 资源勘查工程 | H27: 081403 | I27: 否 | J27: 是 | K27: =VLOOKUP(C27,[1]Sheet1!$C$2:$Z$166,18,0) -> 83.67% | L27: 75/193 18/130 22/128 | M27: =VLOOKUP(C27,[1]Sheet1!$C$2:$Z$166,4,0) -> 61.91 | N27: =VLOOKUP(C27,[1]Sheet1!$C$2:$Z$166,9,0) -> 9.05 | O27: =VLOOKUP(C27,[1]Sheet1!$C$2:$Z$166,15,0) -> 3.20 | P27: =VLOOKUP(C27,[1]Sheet1!$C$2:$Z$166,16,0) -> 74.16 | Q27: =VLOOKUP(C27,[1]Sheet1!$C$2:$Z$166,2,0) -> 11 | R27: 128 | S27: 普通推免 | T27: 是
A28: 27 | B28: 2020010148 | C28: 王瑶瑶 | D28: 女 | E28: 共青团员 | F28: 地球科学学院 | G28: 资源勘查工程 | H28: 081403 | I28: 否 | J28: 是 | K28: =VLOOKUP(C28,[1]Sheet1!$C$2:$Z$166,18,0) -> 95.92% | L28: 36/193 11/130 19/128 | M28: =VLOOKUP(C28,[1]Sheet1!$C$2:$Z$166,4,0) -> 62.57 | N28: =VLOOKUP(C28,[1]Sheet1!$C$2:$Z$166,9,0) -> 9.29 | O28: =VLOOKUP(C28,[1]Sheet1!$C$2:$Z$166,15,0) -> 2.00 | P28: =VLOOKUP(C28,[1]Sheet1!$C$2:$Z$166,16,0) -> 73.87 | Q28: =VLOOKUP(C28,[1]Sheet1!$C$2:$Z$166,2,0) -> 12 | R28: 128 | S28: 国家专项硕士 | T28: 是
A29: 28 | B29: 2020010003 | C29: 李馨瑜 | D29: 女 | E29: 中共党员 | F29: 地球科学学院 | G29: 资源勘查工程 | H29: 081403 | I29: 否 | J29: 是 | K29: =VLOOKUP(C29,[1]Sheet1!$C$2:$Z$166,18,0) -> 85.71% | L29: 8/193 9/130 2/128 | M29: =VLOOKUP(C29,[1]Sheet1!$C$2:$Z$166,4,0) -> 60.90 | N29: =VLOOKUP(C29,[1]Sheet1!$C$2:$Z$166,9,0) -> 9.66 | O29: =VLOOKUP(C29,[1]Sheet1!$C$2:$Z$166,15,0) -> 2.80 | P29: =VLOOKUP(C29,[1]Sheet1!$C$2:$Z$166,16,0) -> 73.36 | Q29: =VLOOKUP(C29,[1]Sheet1!$C$2:$Z$166,2,0) -> 13 | R29: 128 | S29: 普通推免 | T29: 是
A30: 29 | B30: 2020010088 | C30: 郭芮彤 | D30: 女 | E30: 共青团员 | F30: 地球科学学院 | G30: 资源勘查工程 | H30: 081403 | I30: 否 | J30: 是 | K30: =VLOOKUP(C30,[1]Sheet1!$C$2:$Z$166,18,0) -> 85.71% | L30: 41/193 30/130 12/128 | M30: =VLOOKUP(C30,[1]Sheet1!$C$2:$Z$166,4,0) -> 62.02 | N30: =VLOOKUP(C30,[1]Sheet1!$C$2:$Z$166,9,0) -> 9.17 | O30: =VLOOKUP(C30,[1]Sheet1!$C$2:$Z$166,15,0) -> 2.00 | P30: =VLOOKUP(C30,[1]Sheet1!$C$2:$Z$166,16,0) -> 73.19 | Q30: =VLOOKUP(C30,[1]Sheet1!$C$2:$Z$166,2,0) -> 14 | R30: 128 | S30: 本博一体化 | T30: 是 | U30: 四级512/六级495 满足本博英语条件
A31: 30 | B31: 2020010074 | C31: 曲洪达 | D31: 男 | E31: 共青团员 | F31: 地球科学学院 | G31: 资源勘查工程 | H31: 081403 | I31: 否 | J31: 是 | K31: =VLOOKUP(C31,[1]Sheet1!$C$2:$Z$166,18,0) -> 89.80% | L31: 45/193 25/130 14/128 | M31: =VLOOKUP(C31,[1]Sheet1!$C$2:$Z$166,4,0) -> 61.62 | N31: =VLOOKUP(C31,[1]Sheet1!$C$2:$Z$166,9,0) -> 9.17 | O31: =VLOOKUP(C31,[1]Sheet1!$C$2:$Z$166,15,0) -> 2.00 | P31: =VLOOKUP(C31,[1]Sheet1!$C$2:$Z$166,16,0) -> 72.78 | Q31: =VLOOKUP(C31,[1]Sheet1!$C$2:$Z$166,2,0) -> 15 | R31: 128 | S31: 普通推免 | T31: 是
A32: 31 | B32: 2020010113 | C32: 吕对林 | D32: 女 | E32: 共青团员 | F32: 地球科学学院 | G32: 资源勘查工程 | H32: 081403 | I32: 否 | J32: 是 | K32: =VLOOKUP(C32,[1]Sheet1!$C$2:$Z$166,18,0) -> 85.42% | L32: 27/193 19/130 8/128 | M32: =VLOOKUP(C32,[1]Sheet1!$C$2:$Z$166,4,0) -> 61.24 | N32: =VLOOKUP(C32,[1]Sheet1!$C$2:$Z$166,9,0) -> 9.28 | O32: =VLOOKUP(C32,[1]Sheet1!$C$2:$Z$166,15,0) -> 2.00 | P32: =VLOOKUP(C32,[1]Sheet1!$C$2:$Z$166,16,0) -> 72.52 | Q32: =VLOOKUP(C32,[1]Sheet1!$C$2:$Z$166,2,0) -> 16 | R32: 128 | S32: 普通推免 | T32: 是
A33: 32 | B33: 2020010091 | C33: 李晨旭 | D33: 女 | E33: 共青团员 | F33: 地球科学学院 | G33: 资源勘查工程 | H33: 081403 | I33: 否 | J33: 是 | K33: =VLOOKUP(C33,[1]Sheet1!$C$2:$Z$166,18,0) -> 89.80% | L33: 34/193 24/130 45/128 | M33: =VLOOKUP(C33,[1]Sheet1!$C$2:$Z$166,4,0) -> 61.33 | N33: =VLOOKUP(C33,[1]Sheet1!$C$2:$Z$166,9,0) -> 8.99 | O33: =VLOOKUP(C33,[1]Sheet1!$C$2:$Z$166,15,0) -> 2.00 | P33: =VLOOKUP(C33,[1]Sheet1!$C$2:$Z$166,16,0) -> 72.33 | Q33: =VLOOKUP(C33,[1]Sheet1!$C$2:$Z$166,2,0) -> 17 | R33: 128 | S33: 普通推免 | T33: 是
A34: 33 | B34: 2020010172 | C34: 李娜 | D34: 女 | E34: 共青团员 | F34: 地球科学学院 | G34: 资源勘查工程 | H34: 081403 | I34: 否 | J34: 是 | K34: =VLOOKUP(C34,[1]Sheet1!$C$2:$Z$166,18,0) -> 83.67% | L34: 24/193 13/130 3/128 | M34: =VLOOKUP(C34,[1]Sheet1!$C$2:$Z$166,4,0) -> 59.47 | N34: =VLOOKUP(C34,[1]Sheet1!$C$2:$Z$166,9,0) -> 9.46 | O34: =VLOOKUP(C34,[1]Sheet1!$C$2:$Z$166,15,0) -> 3.12 | P34: =VLOOKUP(C34,[1]Sheet1!$C$2:$Z$166,16,0) -> 72.05 | Q34: =VLOOKUP(C34,[1]Sheet1!$C$2:$Z$166,2,0) -> 18 | R34: 128 | S34: 普通推免 | T34: 是
A35: 34 | B35: 2020010192 | C35: 林紫豪 | D35: 男 | E35: 中共党员 | F35: 地球科学学院 | G35: 资源勘查工程 | H35: 081403 | I35: 否 | J35: 是 | K35: =VLOOKUP(C35,[1]Sheet1!$C$2:$Z$166,18,0) -> 77.55% | L35: 37/193 8/130 10/128 | M35: =VLOOKUP(C35,[1]Sheet1!$C$2:$Z$166,4,0) -> 60.15 | N35: =VLOOKUP(C35,[1]Sheet1!$C$2:$Z$166,9,0) -> 9.40 | O35: =VLOOKUP(C35,[1]Sheet1!$C$2:$Z$166,15,0) -> 2.40 | P35: =VLOOKUP(C35,[1]Sheet1!$C$2:$Z$166,16,0) -> 71.96 | Q35: =VLOOKUP(C35,[1]Sheet1!$C$2:$Z$166,2,0) -> 19 | R35: 128 | S35: 普通推免 | T35: 是
A36: 35 | B36: 2020010029 | C36: 王雪 | D36: 女 | E36: 共青团员 | F36: 地球科学学院 | G36: 资源勘查工程 | H36: 081403 | I36: 否 | J36: 是 | K36: =VLOOKUP(C36,[1]Sheet1!$C$2:$Z$166,18,0) -> 87.76% | L36: 68/193 32/130 16/128 | M36: =VLOOKUP(C36,[1]Sheet1!$C$2:$Z$166,4,0) -> 60.89 | N36: =VLOOKUP(C36,[1]Sheet1!$C$2:$Z$166,9,0) -> 9.04 | O36: =VLOOKUP(C36,[1]Sheet1!$C$2:$Z$166,15,0) -> 2.00 | P36: =VLOOKUP(C36,[1]Sheet1!$C$2:$Z$166,16,0) -> 71.93 | Q36: =VLOOKUP(C36,[1]Sheet1!$C$2:$Z$166,2,0) -> 20 | R36: 128 | S36: 普通推免 | T36: 是
A37: 36 | B37: 2020010119 | C37: 伊丽姆努尔·买买提 | D37: 女 | E37: 共青团员 | F37: 地球科学学院 | G37: 资源勘查工程 | H37: 081403 | I37: 否 | J37: 是 | K37: =VLOOKUP(C37,[1]Sheet1!$C$2:$Z$166,18,0) -> 89.80% | L37: 29/193 27/130 24/128 | M37: =VLOOKUP(C37,[1]Sheet1!$C$2:$Z$166,4,0) -> 60.78 | N37: =VLOOKUP(C37,[1]Sheet1!$C$2:$Z$166,9,0) -> 9.12 | O37: =VLOOKUP(C37,[1]Sheet1!$C$2:$Z$166,15,0) -> 2.00 | P37: =VLOOKUP(C37,[1]Sheet1!$C$2:$Z$166,16,0) -> 71.90 | Q37: =VLOOKUP(C37,[1]Sheet1!$C$2:$Z$166,2,0) -> 21 | R37: 128 | S37: 普通推免 | T37: 是
A38: 37 | B38: 2020010183 | C38: 梁冯韬 | D38: 男 | E38: 共青团员 | F38: 地球科学学院 | G38: 资源勘查工程 | H38: 081403 | I38: 否 | J38: 是 | K38: =VLOOKUP(C38,[1]Sheet1!$C$2:$Z$166,18,0) -> 89.80% | L38: 87/193 52/130 27/128 | M38: =VLOOKUP(C38,[1]Sheet1!$C$2:$Z$166,4,0) -> 61.82 | N38: =VLOOKUP(C38,[1]Sheet1!$C$2:$Z$166,9,0) -> 8.82 | O38: =VLOOKUP(C38,[1]Sheet1!$C$2:$Z$166,15,0) -> 1.00 | P38: =VLOOKUP(C38,[1]Sheet1!$C$2:$Z$166,16,0) -> 71.64 | Q38: =VLOOKUP(C38,[1]Sheet1!$C$2:$Z$166,2,0) -> 22 | R38: 128 | S38: 普通推免 | T38: 是
A39: 38 | B39: 2020010144 | C39: 郭倩雯 | D39: 女 | E39: 共青团员 | F39: 地球科学学院 | G39: 资源勘查工程 | H39: 081403 | I39: 否 | J39: 是 | K39: =VLOOKUP(C39,[1]Sheet1!$C$2:$Z$166,18,0) -> 89.80% | L39: 52/193 31/130 26/128 | M39: =VLOOKUP(C39,[1]Sheet1!$C$2:$Z$166,4,0) -> 60.64 | N39: =VLOOKUP(C39,[1]Sheet1!$C$2:$Z$166,9,0) -> 9.00 | O39: =VLOOKUP(C39,[1]Sheet1!$C$2:$Z$166,15,0) -> 2.00 | P39: =VLOOKUP(C39,[1]Sheet1!$C$2:$Z$166,16,0) -> 71.64 | Q39: =VLOOKUP(C39,[1]Sheet1!$C$2:$Z$166,2,0) -> 23 | R39: 128 | S39: 普通推免 | T39: 是
A40: 39 | B40: 2020010170 | C40: 周越 | D40: 女 | E40: 中共党员 | F40: 地球科学学院 | G40: 资源勘查工程 | H40: 081403 | I40: 否 | J40: 是 | K40: =VLOOKUP(C40,[1]Sheet1!$C$2:$Z$166,18,0) -> 83.67% | L40: 64/193 16/130 21/128 | M40: =VLOOKUP(C40,[1]Sheet1!$C$2:$Z$166,4,0) -> 60.42 | N40: =VLOOKUP(C40,[1]Sheet1!$C$2:$Z$166,9,0) -> 9.11 | O40: =VLOOKUP(C40,[1]Sheet1!$C$2:$Z$166,15,0) -> 2.00 | P40: =VLOOKUP(C40,[1]Sheet1!$C$2:$Z$166,16,0) -> 71.54 | Q40: =VLOOKUP(C40,[1]Sheet1!$C$2:$Z$166,2,0) -> 24 | R40: 128 | S40: 普通推免 | T40: 是
A41: 40 | B41: 2020010044 | C41: 邵临波 | D41: 男 | E41: 中共党员 | F41: 地球科学学院 | G41: 资源勘查工程 | H41: 081403 | I41: 否 | J41: 是 | K41: =VLOOKUP(C41,[1]Sheet1!$C$2:$Z$166,18,0) -> 87.76% | L41: 66/193 22/130 13/128 | M41: =VLOOKUP(C41,[1]Sheet1!$C$2:$Z$166,4,0) -> 60.16 | N41: =VLOOKUP(C41,[1]Sheet1!$C$2:$Z$166,9,0) -> 9.14 | O41: =VLOOKUP(C41,[1]Sheet1!$C$2:$Z$166,15,0) -> 2.00 | P41: =VLOOKUP(C41,[1]Sheet1!$C$2:$Z$166,16,0) -> 71.30 | Q41: =VLOOKUP(C41,[1]Sheet1!$C$2:$Z$166,2,0) -> 25 | R41: 128 | S41: 国家专项博士 | T41: 是
A42: 41 | B42: 2020010034 | C42: 李心怡 | D42: 女 | E42: 中共党员 | F42: 地球科学学院 | G42: 资源勘查工程 | H42: 081403 | I42: 否 | J42: 是 | K42: =VLOOKUP(C42,[1]Sheet1!$C$2:$Z$166,18,0) -> 83.67% | L42: 39/193 23/130 36/128 | M42: =VLOOKUP(C42,[1]Sheet1!$C$2:$Z$166,4,0) -> 60.07 | N42: =VLOOKUP(C42,[1]Sheet1!$C$2:$Z$166,9,0) -> 9.03 | O42: =VLOOKUP(C42,[1]Sheet1!$C$2:$Z$166,15,0) -> 2.00 | P42: =VLOOKUP(C42,[1]Sheet1!$C$2:$Z$166,16,0) -> 71.10 | Q42: =VLOOKUP(C42,[1]Sheet1!$C$2:$Z$166,2,0) -> 28 | R42: 128 | S42: 普通推免 | T42: 是
A43: 42 | B43: 2020010145 | C43: 刘琳 | D43: 女 | E43: 共青团员 | F43: 地球科学学院 | G43: 资源勘查工程 | H43: 081403 | I43: 否 | J43: 是 | K43: =VLOOKUP(C43,[1]Sheet1!$C$2:$Z$166,18,0) -> 85.71% | L43: 47/193 43/130 30/128 | M43: =VLOOKUP(C43,[1]Sheet1!$C$2:$Z$166,4,0) -> 60.00 | N43: =VLOOKUP(C43,[1]Sheet1!$C$2:$Z$166,9,0) -> 8.94 | O43: =VLOOKUP(C43,[1]Sheet1!$C$2:$Z$166,15,0) -> 2.00 | P43: =VLOOKUP(C43,[1]Sheet1!$C$2:$Z$166,16,0) -> 70.94 | Q43: =VLOOKUP(C43,[1]Sheet1!$C$2:$Z$166,2,0) -> 29 | R43: 128 | S43: 普通推免 | T43: 是
A44: 43 | B44: 2020010070 | C44: 李杰客 | D44: 男 | E44: 共青团员 | F44: 地球科学学院 | G44: 资源勘查工程 | H44: 081403 | I44: 否 | J44: 是 | K44: =VLOOKUP(C44,[1]Sheet1!$C$2:$Z$166,18,0) -> 87.76% | L44: 60/193 37/130 28/128 | M44: =VLOOKUP(C44,[1]Sheet1!$C$2:$Z$166,4,0) -> 60.82 | N44: =VLOOKUP(C44,[1]Sheet1!$C$2:$Z$166,9,0) -> 8.93 | O44: =VLOOKUP(C44,[1]Sheet1!$C$2:$Z$166,15,0) -> 1.00 | P44: =VLOOKUP(C44,[1]Sheet1!$C$2:$Z$166,16,0) -> 70.75 | Q44: =VLOOKUP(C44,[1]Sheet1!$C$2:$Z$166,2,0) -> 30 | R44: 128 | S44: 本博一体化 | T44: 是 | U44: 四级453 满足本博英语条件
A45: 44 | B45: 2020010191 | C45: 袁英博 | D45: 男 | E45: 中共党员 | F45: 地球科学学院 | G45: 资源勘查工程 | H45: 081403 | I45: 否 | J45: 是 | K45: =VLOOKUP(C45,[1]Sheet1!$C$2:$Z$166,18,0) -> 87.50% | L45: 48/193 7/130 42/128 | M45: =VLOOKUP(C45,[1]Sheet1!$C$2:$Z$166,4,0) -> 59.33 | N45: =VLOOKUP(C45,[1]Sheet1!$C$2:$Z$166,9,0) -> 9.16 | O45: =VLOOKUP(C45,[1]Sheet1!$C$2:$Z$166,15,0) -> 2.00 | P45: =VLOOKUP(C45,[1]Sheet1!$C$2:$Z$166,16,0) -> 70.49 | Q45: =VLOOKUP(C45,[1]Sheet1!$C$2:$Z$166,2,0) -> 32 | R45: 128 | S45: 专业+管理 助管 | T45: 是 | U45: 完成《青年行政能力提升》课程学习并且成绩合格
A46: 45 | B46: 2020010174 | C46: 魏鹏雯 | D46: 女 | E46: 共青团员 | F46: 地球科学学院 | G46: 资源勘查工程 | H46: 081403 | I46: 否 | J46: 是 | K46: =VLOOKUP(C46,[1]Sheet1!$C$2:$Z$166,18,0) -> 85.71% | L46: 92/193 26/130 25/128 | M46: =VLOOKUP(C46,[1]Sheet1!$C$2:$Z$166,4,0) -> 59.46 | N46: =VLOOKUP(C46,[1]Sheet1!$C$2:$Z$166,9,0) -> 8.93 | O46: =VLOOKUP(C46,[1]Sheet1!$C$2:$Z$166,15,0) -> 2.00 | P46: =VLOOKUP(C46,[1]Sheet1!$C$2:$Z$166,16,0) -> 70.39 | Q46: =VLOOKUP(C46,[1]Sheet1!$C$2:$Z$166,2,0) -> 33 | R46: 128 | S46: 国家专项硕士 | T46: 是
A47: 46 | B47: 2020010087 | C47: 向子璇 | D47: 女 | E47: 共青团员 | F47: 地球科学学院 | G47: 资源勘查工程 | H47: 081403 | I47: 否 | J47: 是 | K47: =VLOOKUP(C47,[1]Sheet1!$C$2:$Z$166,18,0) -> 81.63% | L47: 85/193 29/130 15/128 | M47: =VLOOKUP(C47,[1]Sheet1!$C$2:$Z$166,4,0) -> 58.64 | N47: =VLOOKUP(C47,[1]Sheet1!$C$2:$Z$166,9,0) -> 9.04 | O47: =VLOOKUP(C47,[1]Sheet1!$C$2:$Z$166,15,0) -> 2.60 | P47: =VLOOKUP(C47,[1]Sheet1!$C$2:$Z$166,16,0) -> 70.27 | Q47: =VLOOKUP(C47,[1]Sheet1!$C$2:$Z$166,2,0) -> 34 | R47: 128 | S47: 国家专项硕士 | T47: 是
A48: 47 | B48: 2020010037 | C48: 蒲浩澜 | D48: 男 | E48: 共青团员 | F48: 地球科学学院 | G48: 资源勘查工程 | H48: 081403 | I48: 否 | J48: 是 | K48: =VLOOKUP(C48,[1]Sheet1!$C$2:$Z$166,18,0) -> 83.67% | L48: 26/193 55/130 44/128 | M48: =VLOOKUP(C48,[1]Sheet1!$C$2:$Z$166,4,0) -> 59.13 | N48: =VLOOKUP(C48,[1]Sheet1!$C$2:$Z$166,9,0) -> 8.94 | O48: =VLOOKUP(C48,[1]Sheet1!$C$2:$Z$166,15,0) -> 2.00 | P48: =VLOOKUP(C48,[1]Sheet1!$C$2:$Z$166,16,0) -> 70.07 | Q48: =VLOOKUP(C48,[1]Sheet1!$C$2:$Z$166,2,0) -> 35 | R48: 128 | S48: 普通推免 | T48: 是
A49: 48 | B49: 2020010143 | C49: 张雪 | D49: 女 | E49: 共青团员 | F49: 地球科学学院 | G49: 资源勘查工程 | H49: 081403 | I49: 否 | J49: 是 | K49: =VLOOKUP(C49,[1]Sheet1!$C$2:$Z$166,18,0) -> 79.59% | L49: 77/193 50/130 41/128 | M49: =VLOOKUP(C49,[1]Sheet1!$C$2:$Z$166,4,0) -> 59.09 | N49: =VLOOKUP(C49,[1]Sheet1!$C$2:$Z$166,9,0) -> 8.79 | O49: =VLOOKUP(C49,[1]Sheet1!$C$2:$Z$166,15,0) -> 2.00 | P49: =VLOOKUP(C49,[1]Sheet1!$C$2:$Z$166,16,0) -> 69.88 | Q49: =VLOOKUP(C49,[1]Sheet1!$C$2:$Z$166,2,0) -> 36 | R49: 128 | S49: 国家专项硕士 | T49: 是
A50: 49 | B50: 2020010141 | C50: 隆琳茜 | D50: 女 | E50: 共青团员 | F50: 地球科学学院 | G50: 资源勘查工程 | H50: 081403 | I50: 否 | J50: 是 | K50: =VLOOKUP(C50,[1]Sheet1!$C$2:$Z$166,18,0) -> 83.67% | L50: 62/193 33/130 20/128 | M50: =VLOOKUP(C50,[1]Sheet1!$C$2:$Z$166,4,0) -> 58.26 | N50: =VLOOKUP(C50,[1]Sheet1!$C$2:$Z$166,9,0) -> 9.02 | O50: =VLOOKUP(C50,[1]Sheet1!$C$2:$Z$166,15,0) -> 2.00 | P50: =VLOOKUP(C50,[1]Sheet1!$C$2:$Z$166,16,0) -> 69.28 | Q50: =VLOOKUP(C50,[1]Sheet1!$C$2:$Z$166,2,0) -> 42 | R50: 128 | S50: 普通推免 | T50: 是
A51: 50 | B51: 2020010189 | C51: 吉效天 | D51: 男 | E51: 中共党员 | F51: 地球科学学院 | G51: 资源勘查工程 | H51: 081403 | I51: 否 | J51: 是 | K51: =VLOOKUP(C51,[1]Sheet1!$C$2:$Z$166,18,0) -> 67.35% | L51: 91/193 57/130 31/128 | M51: =VLOOKUP(C51,[1]Sheet1!$C$2:$Z$166,4,0) -> 58.28 | N51: =VLOOKUP(C51,[1]Sheet1!$C$2:$Z$166,9,0) -> 8.78 | O51: =VLOOKUP(C51,[1]Sheet1!$C$2:$Z$166,15,0) -> 2.00 | P51: =VLOOKUP(C51,[1]Sheet1!$C$2:$Z$166,16,0) -> 69.07 | Q51: =VLOOKUP(C51,[1]Sheet1!$C$2:$Z$166,2,0) -> 43 | R51: 128 | S51: 普通推免 | T51: 是
A52: 51 | B52: 2020010001 | C52: 栗园秋 | D52: 女 | E52: 共青团员 | F52: 地球科学学院 | G52: 资源勘查工程 | H52: 081403 | I52: 否 | J52: 是 | K52: =VLOOKUP(C52,[1]Sheet1!$C$2:$Z$166,18,0) -> 81.63% | L52: 82/193 34/130 55/128 | M52: =VLOOKUP(C52,[1]Sheet1!$C$2:$Z$166,4,0) -> 58.27 | N52: =VLOOKUP(C52,[1]Sheet1!$C$2:$Z$166,9,0) -> 8.78 | O52: =VLOOKUP(C52,[1]Sheet1!$C$2:$Z$166,15,0) -> 2.00 | P52: =VLOOKUP(C52,[1]Sheet1!$C$2:$Z$166,16,0) -> 69.05 | Q52: =VLOOKUP(C52,[1]Sheet1!$C$2:$Z$166,2,0) -> 44 | R52: 128 | S52: 普通推免 | T52: 是
A53: 52 | B53: 2020010090 | C53: 张冰冰 | D53: 女 | E53: 中共党员 | F53: 地球科学学院 | G53: 资源勘查工程 | H53: 081403 | I53: 否 | J53: 是 | K53: =VLOOKUP(C53,[1]Sheet1!$C$2:$Z$166,18,0) -> 77.55% | L53: 55/193 28/130 23/128 | M53: =VLOOKUP(C53,[1]Sheet1!$C$2:$Z$166,4,0) -> 58.00 | N53: =VLOOKUP(C53,[1]Sheet1!$C$2:$Z$166,9,0) -> 9.03 | O53: =VLOOKUP(C53,[1]Sheet1!$C$2:$Z$166,15,0) -> 2.00 | P53: =VLOOKUP(C53,[1]Sheet1!$C$2:$Z$166,16,0) -> 69.03 | Q53: =VLOOKUP(C53,[1]Sheet1!$C$2:$Z$166,2,0) -> 45 | R53: 128 | S53: 普通推免 | T53: 是
A54: 53 | B54: 2020010142 | C54: 阎慧琳 | D54: 女 | E54: 中共党员 | F54: 地球科学学院 | G54: 资源勘查工程 | H54: 081403 | I54: 否 | J54: 是 | K54: =VLOOKUP(C54,[1]Sheet1!$C$2:$Z$166,18,0) -> 79.59% | L54: 74/193 51/130 39/128 | M54: =VLOOKUP(C54,[1]Sheet1!$C$2:$Z$166,4,0) -> 57.85 | N54: =VLOOKUP(C54,[1]Sheet1!$C$2:$Z$166,9,0) -> 8.81 | O54: =VLOOKUP(C54,[1]Sheet1!$C$2:$Z$166,15,0) -> 2.00 | P54: =VLOOKUP(C54,[1]Sheet1!$C$2:$Z$166,16,0) -> 68.66 | Q54: =VLOOKUP(C54,[1]Sheet1!$C$2:$Z$166,2,0) -> 50 | R54: 128 | S54: 普通推免 | T54: 是
A55: 54 | B55: 2020010010 | C55: 王康龙 | D55: 男 | E55: 共青团员 | F55: 地球科学学院 | G55: 资源勘查工程 | H55: 081403 | I55: 否 | J55: 是 | K55: =VLOOKUP(C55,[1]Sheet1!$C$2:$Z$166,18,0) -> 75.00% | L55: 84/193 40/130 50/128 | M55: =VLOOKUP(C55,[1]Sheet1!$C$2:$Z$166,4,0) -> 58.83 | N55: =VLOOKUP(C55,[1]Sheet1!$C$2:$Z$166,9,0) -> 8.76 | O55: =VLOOKUP(C55,[1]Sheet1!$C$2:$Z$166,15,0) -> 1.00 | P55: =VLOOKUP(C55,[1]Sheet1!$C$2:$Z$166,16,0) -> 68.59 | Q55: =VLOOKUP(C55,[1]Sheet1!$C$2:$Z$166,2,0) -> 53 | R55: 128 | S55: 本博一体化 | T55: 是 | U55: 四级509 满足本博英语条件
A56: 55 | B56: 2020010139 | C56: 曾维永 | D56: 男 | E56: 共青团员 | F56: 地球科学学院 | G56: 资源勘查工程 | H56: 081403 | I56: 否 | J56: 是 | K56: =VLOOKUP(C56,[1]Sheet1!$C$2:$Z$166,18,0) -> 71.43% | L56: 88/193 60/130 51/128 | M56: =VLOOKUP(C56,[1]Sheet1!$C$2:$Z$166,4,0) -> 58.72 | N56: =VLOOKUP(C56,[1]Sheet1!$C$2:$Z$166,9,0) -> 8.67 | O56: =VLOOKUP(C56,[1]Sheet1!$C$2:$Z$166,15,0) -> 1.00 | P56: =VLOOKUP(C56,[1]Sheet1!$C$2:$Z$166,16,0) -> 68.40 | Q56: =VLOOKUP(C56,[1]Sheet1!$C$2:$Z$166,2,0) -> 55 | R56: 128 | S56: 专业+管理 助管 | T56: 是 | U56: 完成《青年行政能力提升》课程学习并且成绩合格
A57: 56 | B57: 2020010146 | C57: 克露拉·阿地力江 | D57: 女 | E57: 共青团员 | F57: 地球科学学院 | G57: 资源勘查工程 | H57: 081403 | I57: 否 | J57: 是 | K57: =VLOOKUP(C57,[1]Sheet1!$C$2:$Z$166,18,0) -> 73.47% | L57: 90/193 59/130 46/128 | M57: =VLOOKUP(C57,[1]Sheet1!$C$2:$Z$166,4,0) -> 57.51 | N57: =VLOOKUP(C57,[1]Sheet1!$C$2:$Z$166,9,0) -> 8.70 | O57: =VLOOKUP(C57,[1]Sheet1!$C$2:$Z$166,15,0) -> 2.00 | P57: =VLOOKUP(C57,[1]Sheet1!$C$2:$Z$166,16,0) -> 68.21 | Q57: =VLOOKUP(C57,[1]Sheet1!$C$2:$Z$166,2,0) -> 57 | R57: 128 | S57: 普通推免 | T57: 是
A58: 57 | B58: 2020010109 | C58: 余成明 | D58: 男 | E58: 中共党员 | F58: 地球科学学院 | G58: 资源勘查工程 | H58: 081403 | I58: 否 | J58: 是 | K58: =VLOOKUP(C58,[1]Sheet1!$C$2:$Z$166,18,0) -> 79.59% | L58: 71/193 61/130 53/128 | M58: =VLOOKUP(C58,[1]Sheet1!$C$2:$Z$166,4,0) -> 58.30 | N58: =VLOOKUP(C58,[1]Sheet1!$C$2:$Z$166,9,0) -> 8.72 | O58: =VLOOKUP(C58,[1]Sheet1!$C$2:$Z$166,15,0) -> 1.00 | P58: =VLOOKUP(C58,[1]Sheet1!$C$2:$Z$166,16,0) -> 68.01 | Q58: =VLOOKUP(C58,[1]Sheet1!$C$2:$Z$166,2,0) -> 59 | R58: 128 | S58: 本博一体化 | T58: 是 | U58: 四级520 满足本博英语条件
A59: 58 | B59: 2020010030 | C59: 岳文婧 | D59: 女 | E59: 共青团员 | F59: 地球科学学院 | G59: 资源勘查工程 | H59: 081403 | I59: 否 | J59: 是 | K59: =VLOOKUP(C59,[1]Sheet1!$C$2:$Z$166,18,0) -> 65.31% | L59: 56/193 64/130 58/128 | M59: =VLOOKUP(C59,[1]Sheet1!$C$2:$Z$166,4,0) -> 56.71 | N59: =VLOOKUP(C59,[1]Sheet1!$C$2:$Z$166,9,0) -> 8.73 | O59: =VLOOKUP(C59,[1]Sheet1!$C$2:$Z$166,15,0) -> 2.00 | P59: =VLOOKUP(C59,[1]Sheet1!$C$2:$Z$166,16,0) -> 67.44 | Q59: =VLOOKUP(C59,[1]Sheet1!$C$2:$Z$166,2,0) -> 71 | R59: 128 | S59: 普通推免 | T59: 是
A62: 注：1、身份证号码隐去出生日期，用********代替 | B62: 1、网上公示请隐去身份证号。
B63: 2、“按推免要求学生应该具备的条件”是指学生满足某一选拔类别应具有的条件，比如校级优秀学生干部，不包括推免普遍条件。
